[Event "SVK-ch Open 2018"]
[Site "Banska Stiavnica"]
[Date "2018.07.14"]
[Round "8"]
[White "Mrvova, Alena"]
[Black "Milcova, Zuzana"]
[Result "1-0"]
[ECO "B01"]
[WhiteElo "2202"]
[BlackElo "2002"]
[Annotator "NA"]
[PlyCount "155"]
[EventDate "2018.07.07"]
[EventType "swiss"]
[EventCountry "SVK"]
[SourceTitle "playchess.com"]
[Source "ChessBase"]
[SourceQuality "1"]
[TimeControl "40/5400+30:1800+30"]

1. e4 {[%emt 0:00:00]} d5 {[%emt 0:00:00]} 2. exd5 {[%emt 0:00:00]} Nf6 {[%emt 0:00:00]} 3. d4 {[%emt 0:00:26]} Nxd5 {[%emt 0:00:00]} 4. c4 {[%emt 0:01:04]} Nb6 {[%emt 0:00:00]} 5. Nc3 {[%emt 0:00:40]} e5 {[%emt 0:00:40]} 6. d5 {[%emt 0:02:38]} Bb4 {[%emt 0:01:34] LiveBook: 20 Partien} 7. Bd2 {[%emt 0:03:37] B01: Scandinavian Defence} (7. Nf3 O-O 8. Be2 e4 9. Nd4 c6 10. O-O cxd5 11. cxd5 Bxc3 12. bxc3 Qxd5 13. Nb5 Na6 14. c4 Qxd1 15. Rxd1 {1-0 (41) Paveto,K (2417)-Boissonet,C (2430) Villa Martelli 2015}) 7... O-O {[%emt 0:09:44]} 8. a3 {[%emt 0:02:14]} Bxc3 {[%emt 0:03:31]} 9. Bxc3 {[%emt 0:00:07]} a5 $146 {[%emt 0:12:32]} ({Predecessor:} 9... Re8 10. Be2 Bf5 11. Nf3 N8d7 12. O-O Nc8 13. b4 b6 14. Re1 Nd6 {1-0 (67) Hajas,L (1996)-Milcova,Z (1841) Slovakia 2008}) 10. Be2 {[%emt 0:02:54]} Re8 {[%emt 0:08:33]} 11. Nf3 {[%emt 0:04:00]} Bg4 {[%emt 0:04:42]} 12. Nd2 {[%emt 0:03:34]} Bxe2 {[%emt 0:01:53]} 13. Qxe2 {[%emt 0:00:21]} Na4 {[%emt 0:04:51]} 14. Rc1 {[%emt 0:03:38]} c6 {[%emt 0:08:47]} 15. dxc6 {[%emt 0:04:35]} Nxc6 {[%emt 0:00:12]} 16. O-O {[%emt 0:01:08]} Nd4 {[%emt 0:10:54]} 17. Qd1 {[%emt 0:03:59]} Nxc3 {[%emt 0:08:14]} 18. bxc3 {[%emt 0:00:48]} Nf5 {[%emt 0:06:35]} 19. Ne4 {[%emt 0:02:24]} Qc7 {[%emt 0:04:14]} 20. c5 {[%emt 0:02:52]} Re6 {[%emt 0:01:20]} 21. Qf3 {[%emt 0:05:02]} Nh4 {[%emt 0:01:12]} 22. Qg3 {[%emt 0:03:04]} Nxg2 {[%emt 0:03:31]} 23. Qxg2 {[%emt 0:00:24]} Rg6 {[%emt 0:00:07]} 24. Ng3 {[%emt 0:00:03]} Qxc5 {[%emt 0:02:14]} 25. Qxb7 {[%emt 0:02:18]} Rf8 {[%emt 0:00:33]} 26. Kh1 {[%emt 0:01:44]} f5 {[%emt 0:00:55]} 27. Rcd1 {[%emt 0:02:03]} Kh8 {[%emt 0:01:02]} 28. Qd5 {[%emt 0:02:52]} Qxc3 {[%emt 0:01:26]} 29. Rd3 {[%emt 0:01:07]} Qc8 {[%emt 0:00:43]} 30. Qxe5 {[%emt 0:02:37]} f4 {[%emt 0:01:13]} 31. Ne4 {[%emt 0:02:57]} Qg4 {[%emt 0:00:51]} 32. Ng3 {[%emt 0:01:56]} fxg3 {[%emt 0:00:15]} 33. Rxg3 {[%emt 0:02:44]} Qe6 {[%emt 0:00:45]} 34. Qxa5 {[%emt 0:05:31]} Qe4+ {[%emt 0:01:54]} 35. Kg1 {[%emt 0:01:58]} h6 {[%emt 0:00:27]} 36. Qc5 {[%emt 0:06:45]} Rxg3+ {[%emt 0:01:04]} 37. hxg3 {[%emt 0:00:42]} Rf5 {[%emt 0:00:22]} 38. Qe3 {[%emt 0:00:09]} Qg4 {[%emt 0:00:44]} 39. f4 {[%emt 0:06:34]} Rh5 {[%emt 0:01:13]} 40. Qf3 {[%emt 0:01:29]} Qh3 {[%emt 0:00:21]} 41. Qg2 {[%emt 0:30:14]} Qc8 {[%emt 0:04:26]} 42. Qf3 {[%emt 0:00:00]} Rb5 {[%emt 0:10:54]} 43. Rd1 {[%emt 0:00:00]} Rb2 {[%emt 0:03:55]} 44. Qd5 {[%emt 0:00:00]} Qg4 {[%emt 0:09:24]} 45. Qd8+ {[%emt 0:00:00]} Kh7 {[%emt 0:00:05]} 46. Qd3+ {[%emt 0:00:00]} Qg6 {[%emt 0:00:25]} (46... Kh8 $1 $11) 47. Qxg6+ {[%emt 0:01:37]} Kxg6 {[%emt 0:00:01]} 48. Ra1 {[%emt 0:00:05]} Kf5 {[%emt 0:03:26] [#]} 49. a4 $1 {[%emt 0:00:36]} Kg4 {[%emt 0:01:27]} 50. Ra3 {[%emt 0:00:04]} Rb6 {[%emt 0:00:50]} 51. a5 {[%emt 0:00:19]} Ra6 {[%emt 0:00:02]} 52. Kg2 {[%emt 0:00:08]} g6 {[%emt 0:00:21]} 53. Ra4 {[%emt 0:00:43]} h5 {[%emt 0:00:23]} (53... g5 $16 {is a better defense.} 54. fxg5+ Kxg5) 54. Kf2 {[%emt 0:00:29]} g5 $2 {[%emt 0:01:35]} (54... Kf5 {war angesagt.} 55. Kf3 Ke6 56. Re4+ Kd5 57. Re5+ Kd4) 55. fxg5+ {[%emt 0:01:01]} Kxg5 {[%emt 0:00:04]} 56. Kf3 $2 {[%emt 0:00:56]} (56. Ke3 Kf5 57. Kd4) 56... Kf5 {[%emt 0:00:20]} (56... Kf6 $142 57. Kf4 Kg6) 57. Ke3 {[%emt 0:00:19]} Rg6 {[%emt 0:00:57]} 58. Kf2 $18 {[%emt 0:00:37]} Ra6 {[%emt 0:00:07]} 59. Kf3 {[%emt 0:00:05]} Kg5 {[%emt 0:00:51]} 60. Ke4 {[%emt 0:01:10]} Kg4 {[%emt 0:00:13]} 61. Ra3 {[%emt 0:00:21]} Kg5 {[%emt 0:01:02]} 62. Kd4 {[%emt 0:01:18]} Kg4 {[%emt 0:00:05]} 63. Kc4 {[%emt 0:00:07]} Ra8 {[%emt 0:00:55]} 64. Kb5 {[%emt 0:01:02]} Rf8 {[%emt 0:00:24]} 65. a6 {[%emt 0:00:55]} Rf5+ {[%emt 0:00:11]} 66. Kb4 {[%emt 0:00:05]} Rf7 {[%emt 0:00:52]} 67. Rc3 {[%emt 0:00:38]} Rf8 {[%emt 0:00:32]} 68. Kb5 {[%emt 0:00:50]} Rb8+ {[%emt 0:00:19]} 69. Ka5 {[%emt 0:00:15]} Re8 {[%emt 0:00:43]} 70. a7 {[%emt 0:00:41]} Re1 {[%emt 0:00:27]} 71. Rb3 {[%emt 0:00:51]} Re5+ {[%emt 0:00:20]} 72. Ka6 {[%emt 0:00:13]} Re6+ {[%emt 0:00:22]} 73. Rb6 {[%emt 0:01:06]} Re8 {[%emt 0:00:27]} 74. Rg6+ {[%emt 0:00:36]} Kf5 {[%emt 0:00:18]} 75. Rg7 {[%emt 0:01:00]} Kf6 {[%emt 0:00:17]} 76. Rc7 {[%emt 0:00:06]} Kf5 {[%emt 0:00:33]} 77. Kb7 {[%emt 0:00:08]} Kg4 {[%emt 0:00:17]} 78. Rg7+ {[%emt 0:00:04]} 1-0

[Event "SVK-ch Open 2018"]
[Site "Banska Stiavnica"]
[Date "2018.07.14"]
[Round "8"]
[White "Jamrich, Gyorgy"]
[Black "Balogh, Peter"]
[Result "1/2-1/2"]
[ECO "B06"]
[WhiteElo "2200"]
[BlackElo "2097"]
[Annotator "NA"]
[PlyCount "91"]
[EventDate "2018.07.07"]
[EventType "swiss"]
[EventCountry "SVK"]
[SourceTitle "playchess.com"]
[Source "ChessBase"]
[SourceQuality "1"]
[TimeControl "40/5400+30:1800+30"]

1. e4 {[%emt 0:00:00]} g6 {[%emt 0:00:43]} 2. d4 {[%emt 0:00:00]} Bg7 {[%emt 0:00:04]} 3. Nc3 {[%emt 0:01:50]} d6 {[%emt 0:00:06]} 4. f4 {[%emt 0:00:26]} a6 {[%emt 0:03:27]} 5. a4 {[%emt 0:11:19]} Nd7 {[%emt 0:00:24]} 6. Nf3 {[%emt 0:00:10]} c5 {[%emt 0:00:23] B06: Modern Defence} (6... e6 7. a5 Ne7 8. Be2 O-O 9. O-O b5 10. axb6 cxb6 11. Bd3 Bb7 12. Ne2 e5 13. c3 d5 14. Nxe5 dxe4 {½-½ (24) Dastan,B (2480)-Sanal,V (2478) Izmir 2016}) 7. d5 {[%emt 0:02:16]} Qc7 {[%emt 0:03:25]} 8. Bc4 {[%emt 0:03:14]} Ngf6 {[%emt 0:02:22]} 9. O-O {[%emt 0:01:31]} O-O {[%emt 0:00:12]} 10. Bd2 {[%emt 0:13:06]} Ne8 {[%emt 0:04:19]} 11. Qe2 {[%emt 0:06:23]} Rb8 $146 {[%emt 0:04:14]} ({Predecessor:} 11... Nb6 12. Bb3 e5 13. fxe5 dxe5 14. a5 Nd7 15. d6 Nxd6 {1-0 (24) Wrinn,S-Barry,R corr 1987}) 12. Rae1 {[%emt 0:00:45]} Nb6 {[%emt 0:01:37]} 13. b3 {[%emt 0:04:18]} Nxc4 {[%emt 0:01:09]} 14. bxc4 {[%emt 0:00:09]} Bg4 {[%emt 0:04:45]} 15. h3 {[%emt 0:00:24]} Bxf3 {[%emt 0:03:43]} 16. Rxf3 {[%emt 0:00:20]} e5 {[%emt 0:01:12]} 17. f5 {[%emt 0:00:22]} Qd7 {[%emt 0:00:33]} 18. g4 {[%emt 0:07:24]} f6 {[%emt 0:01:50]} 19. Rb1 {[%emt 0:03:50]} Nc7 {[%emt 0:02:50]} 20. Rff1 {[%emt 0:04:11]} b6 {[%emt 0:01:45]} 21. Rb3 {[%emt 0:01:41]} Rb7 {[%emt 0:01:30]} 22. Rfb1 {[%emt 0:00:51]} Rfb8 {[%emt 0:00:12]} 23. Qf1 {[%emt 0:00:30]} g5 {[%emt 0:02:01]} 24. Kh2 {[%emt 0:02:01]} Kf7 {[%emt 0:00:32]} 25. R1b2 {[%emt 0:02:36]} Bf8 {[%emt 0:01:44]} 26. Qb1 {[%emt 0:00:25]} Na8 {[%emt 0:00:33]} 27. a5 $16 {[%emt 0:00:53]} Be7 {[%emt 0:03:53]} 28. axb6 {[%emt 0:01:14]} Bd8 {[%emt 0:00:25]} 29. Qa1 {[%emt 0:00:28]} Nxb6 {[%emt 0:01:14]} 30. Na4 {[%emt 0:00:49]} Nxc4 {[%emt 0:02:16]} 31. Rxb7 {[%emt 0:00:09]} Rxb7 {[%emt 0:00:07]} 32. Rxb7 {[%emt 0:00:05]} Qxb7 {[%emt 0:00:07]} 33. Be1 {[%emt 0:01:52]} Ba5 {[%emt 0:27:19]} 34. Bxa5 {[%emt 0:00:59]} Nxa5 {[%emt 0:00:36]} 35. Nxc5 {[%emt 0:00:15]} Qc7 {[%emt 0:01:07]} 36. Ne6 {[%emt 0:02:39]} Qxc2+ {[%emt 0:00:26]} 37. Kg1 {[%emt 0:00:08]} Nc4 {[%emt 0:01:59]} 38. Qxa6 {[%emt 0:01:25]} Qd1+ {[%emt 0:02:59]} 39. Kh2 {[%emt 0:00:15]} Qe2+ {[%emt 0:01:01]} 40. Kh1 {[%emt 0:00:10]} Qxe4+ {[%emt 0:01:04]} 41. Kh2 {[%emt 0:30:05]} Qe2+ {[%emt 0:31:51]} 42. Kh1 {[%emt 0:00:14]} Qd1+ {[%emt 0:02:41]} 43. Kh2 {[%emt 0:00:06]} Qd2+ {[%emt 0:00:44]} 44. Kg1 {[%emt 0:00:07]} Qc1+ {[%emt 0:06:38]} 45. Kh2 {[%emt 0:00:08]} Qb2+ {[%emt 0:00:17]} 46. Kh1 {[%emt 0:00:05]} 1/2-1/2

[Event "SVK-ch Open 2018"]
[Site "Banska Stiavnica"]
[Date "2018.07.14"]
[Round "8"]
[White "Lintner, Igor"]
[Black "Jablonicky, Martin"]
[Result "0-1"]
[ECO "A56"]
[WhiteElo "2173"]
[BlackElo "2360"]
[Annotator "NA"]
[PlyCount "210"]
[EventDate "2018.07.07"]
[EventType "swiss"]
[EventCountry "SVK"]
[SourceTitle "playchess.com"]
[Source "ChessBase"]
[SourceQuality "1"]
[TimeControl "40/5400+30:1800+30"]

1. d4 {[%emt 0:00:00]} Nf6 {[%emt 0:09:58]} 2. c4 {[%emt 0:00:00]} c5 {[%emt 0:00:32]} 3. Nf3 {[%emt 0:00:26]} e6 {[%emt 0:00:17]} 4. Nc3 {[%emt 0:00:19]} cxd4 {[%emt 0:01:30]} 5. Nxd4 {[%emt 0:00:23]} b6 {[%emt 0:00:53]} 6. e4 {[%emt 0:01:51]} d6 {[%emt 0:00:14]} 7. Be2 {[%emt 0:00:49]} Bb7 {[%emt 0:00:06]} 8. f3 {[%emt 0:00:05]} Be7 {[%emt 0:00:04]} 9. O-O {[%emt 0:00:09]} O-O {[%emt 0:00:15]} 10. Be3 {[%emt 0:00:22]} a6 {[%emt 0:00:08]} 11. Qd2 {[%emt 0:00:03]} Qc7 {[%emt 0:00:19]} 12. Rfc1 {[%emt 0:00:45] B41: Sicilian: Kan Variation: 5 c4} Rc8 {[%emt 0:04:07]} 13. Kh1 {[%emt 0:02:39]} Nbd7 {[%emt 0:02:35] [#]} 14. Rab1 $146 {[%emt 0:04:46]} ({Predecessor:} 14. a4 Rab8 15. b4 Qd8 16. Nb3 Ba8 17. a5 bxa5 18. Nxa5 Rxb4 19. Nb5 axb5 20. Qxb4 bxc4 21. Rxc4 {1-0 (99) Duda,J (2671)-Artemiev,V (2653) Martuni 2016}) 14... Qd8 {[%emt 0:01:45]} 15. Bf1 {[%emt 0:03:03]} Rab8 {[%emt 0:01:15]} 16. Nc2 {[%emt 0:06:40]} Ne5 {[%emt 0:06:17]} 17. b3 {[%emt 0:02:04]} h5 {[%emt 0:00:40]} 18. Ne1 {[%emt 0:13:12]} h4 {[%emt 0:03:12]} 19. Qf2 {[%emt 0:01:09]} Ba8 {[%emt 0:01:44]} 20. Nd3 {[%emt 0:05:14]} Ng6 {[%emt 0:04:36]} 21. Nf4 {[%emt 0:08:21]} Nxf4 {[%emt 0:01:39]} 22. Bxf4 {[%emt 0:00:02]} Nh5 {[%emt 0:08:53]} 23. Be3 {[%emt 0:01:09]} Bf6 {[%emt 0:00:40]} 24. Na4 {[%emt 0:01:37]} Rc6 {[%emt 0:01:01]} 25. b4 {[%emt 0:01:32]} b5 {[%emt 0:00:59]} 26. cxb5 {[%emt 0:00:23]} axb5 {[%emt 0:00:13]} 27. Rxc6 {[%emt 0:03:25]} Bxc6 {[%emt 0:00:06]} 28. Rc1 {[%emt 0:00:03]} Qd7 {[%emt 0:07:39]} 29. Nb6 {[%emt 0:01:53]} Qb7 {[%emt 0:01:29]} 30. Qc2 {[%emt 0:02:14]} Be8 {[%emt 0:00:35]} 31. Nc8 {[%emt 0:04:40]} Be5 {[%emt 0:02:58]} 32. Qc7 {[%emt 0:10:37]} Qxc7 {[%emt 0:05:35]} 33. Rxc7 {[%emt 0:00:01]} d5 {[%emt 0:02:08]} 34. Rc5 {[%emt 0:02:06]} d4 {[%emt 0:08:46]} 35. Bf2 {[%emt 0:04:30]} f6 {[%emt 0:03:28]} 36. Bxh4 {[%emt 0:09:51]} Bd7 {[%emt 0:09:20]} 37. Ne7+ {[%emt 0:03:01]} Kf7 {[%emt 0:00:04]} 38. Nc6 {[%emt 0:00:06]} Bxc6 {[%emt 0:00:02]} 39. Rxc6 {[%emt 0:00:04]} Ra8 {[%emt 0:03:16]} 40. Rc2 {[%emt 0:06:10]} Ra3 {[%emt 0:09:32]} 41. Bf2 {[%emt 0:04:06]} Nf4 {[%emt 0:06:07]} 42. g3 {[%emt 0:04:38]} Nd3 {[%emt 0:07:48]} 43. f4 {[%emt 0:06:49]} Nxf2+ {[%emt 0:01:16]} 44. Rxf2 {[%emt 0:00:01]} Bd6 {[%emt 0:00:17]} 45. Rb2 {[%emt 0:00:46]} Rc3 {[%emt 0:04:00]} 46. Rd2 {[%emt 0:02:35]} e5 {[%emt 0:01:15]} 47. Bxb5 {[%emt 0:02:14]} Bxb4 {[%emt 0:00:56]} 48. Rd3 {[%emt 0:00:21]} Rc1+ {[%emt 0:00:22]} 49. Kg2 {[%emt 0:00:01]} Rc2+ {[%emt 0:00:11]} 50. Kh1 {[%emt 0:05:03]} Ke7 {[%emt 0:00:10]} 51. fxe5 {[%emt 0:02:21]} fxe5 {[%emt 0:00:07]} 52. a4 {[%emt 0:00:06]} Bc3 {[%emt 0:05:14]} 53. Rf3 {[%emt 0:02:17]} Rc1+ {[%emt 0:03:15]} 54. Kg2 {[%emt 0:00:06]} (54. Rf1 $5 {[%cal Rf1c1]} Rc2 55. Kg1 $11) 54... Re1 {[%emt 0:00:06]} 55. Bd3 {[%emt 0:02:11]} Kd6 {[%emt 0:01:21]} 56. h4 {[%emt 0:01:12]} Kc5 {[%emt 0:01:28]} 57. Rf5 {[%emt 0:01:05]} Kb4 {[%emt 0:01:49]} 58. a5 {[%emt 0:02:47]} Kxa5 {[%emt 0:01:16]} 59. Rxe5+ {[%emt 0:00:08]} Kb4 {[%emt 0:00:05]} 60. Rb5+ {[%emt 0:02:50]} Ka3 {[%emt 0:01:07]} 61. Rf5 {[%emt 0:00:20]} Rd1 {[%emt 0:01:59]} 62. Rf3 {[%emt 0:00:09]} Kb4 {[%emt 0:00:09]} 63. g4 {[%emt 0:01:12]} Be1 {[%emt 0:00:59]} 64. h5 {[%emt 0:01:40]} Bh4 {[%emt 0:00:17]} 65. Be2 {[%emt 0:00:54]} ({White should play} 65. e5 $16) 65... Re1 {[%emt 0:00:54]} 66. Bd3 {[%emt 0:00:34]} Rd1 {[%emt 0:00:15]} 67. Be2 {[%emt 0:00:11]} Re1 {[%emt 0:00:40]} 68. Bd3 {[%emt 0:00:05]} Bg5 {[%emt 0:00:40]} 69. Rf1 {[%emt 0:00:58]} ({White should play} 69. Rf5 $14 Bd2 70. Rf3) 69... Re3 {[%emt 0:00:04]} 70. Rf3 {[%emt 0:00:01]} Re1 {[%emt 0:00:13]} 71. Bf1 {[%emt 0:01:18]} Rxe4 {[%emt 0:00:33]} 72. Kg3 {[%emt 0:00:15]} Re1 {[%emt 0:01:16]} 73. Rf5 {[%emt 0:00:42]} Re3+ {[%emt 0:00:33]} 74. Rf3 {[%emt 0:00:31]} Re7 {[%emt 0:00:27]} 75. Rf5 {[%emt 0:00:12]} Re3+ {[%emt 0:00:24]} 76. Rf3 {[%emt 0:00:04]} Re1 {[%emt 0:00:23]} 77. Rf5 {[%emt 0:00:08]} Be7 {[%emt 0:00:57]} 78. Rf3 {[%emt 0:00:30]} Bd6+ {[%emt 0:00:18]} 79. Kf2 {[%emt 0:00:46]} Re4 {[%emt 0:00:10]} 80. g5 {[%emt 0:00:47]} Bf4 {[%emt 0:00:39]} 81. Bd3 {[%emt 0:01:18]} Be3+ $1 {[%emt 0:00:06]} 82. Kg3 {[%emt 0:00:04]} Re5 {[%emt 0:00:23]} 83. Rf5 {[%emt 0:00:35]} Re7 {[%emt 0:01:19]} 84. Ba6 {[%emt 0:00:49]} Kc3 {[%emt 0:00:30]} 85. Rd5 {[%emt 0:00:01]} Ra7 {[%emt 0:00:23]} 86. Bb5 {[%emt 0:00:27]} Ra1 {[%emt 0:00:10]} 87. Kf3 {[%emt 0:01:05]} Rg1 {[%emt 0:00:59]} 88. g6 $11 {[%emt 0:00:31]} Rh1 {[%emt 0:00:47]} 89. Kg4 {[%emt 0:00:14]} Rg1+ {[%emt 0:00:05]} 90. Kf3 {[%emt 0:00:33]} Rh1 {[%emt 0:00:04]} 91. Kg4 {[%emt 0:00:03]} Rd1 {[%emt 0:00:22]} 92. Kf3 {[%emt 0:01:01]} Rd2 {[%emt 0:01:11]} 93. h6 {[%emt 0:00:34]} Bxh6 {[%emt 0:00:22]} 94. Rh5 {[%emt 0:00:05]} Be3 {[%emt 0:00:39]} 95. Rh7 {[%emt 0:00:33]} Rf2+ {[%emt 0:00:10]} 96. Kg3 {[%emt 0:00:07]} Rf5 {[%emt 0:00:16]} 97. Be8 {[%emt 0:01:06]} Re5 {[%emt 0:00:47]} 98. Bf7 {[%emt 0:00:39]} d3 {[%emt 0:00:44]} 99. Rxg7 {[%emt 0:00:34]} d2 {[%emt 0:00:06]} 100. Bb3 {[%emt 0:00:08]} Kxb3 {[%emt 0:00:22]} 101. Rd7 {[%emt 0:00:04]} Bh6 {[%emt 0:00:38]} 102. Kf2 {[%emt 0:01:02]} Kc2 {[%emt 0:00:44]} 103. Rc7+ {[%emt 0:00:00]} Kd1 {[%emt 0:00:00]} 104. g7 {[%emt 0:00:06]} Rf5+ {[%emt 0:00:00]} 105. Kg2 {[%emt 0:00:09]} Rg5+ {[%emt 0:00:01]} 0-1

[Event "SVK-ch Open 2018"]
[Site "Banska Stiavnica"]
[Date "2018.07.14"]
[Round "8"]
[White "Macko, Michal"]
[Black "Petran, Peter"]
[Result "1/2-1/2"]
[ECO "B06"]
[WhiteElo "2158"]
[BlackElo "2302"]
[Annotator "NA"]
[PlyCount "63"]
[EventDate "2018.07.07"]
[EventType "swiss"]
[EventCountry "SVK"]
[SourceTitle "playchess.com"]
[Source "ChessBase"]
[SourceQuality "1"]
[TimeControl "40/5400+30:1800+30"]

1. e4 {[%emt 0:00:00]} g6 {[%emt 0:00:00]} 2. d4 {[%emt 0:00:00]} Bg7 {[%emt 0:00:00]} 3. Nf3 {[%emt 0:00:00]} c6 {[%emt 0:00:40]} 4. h3 {[%emt 0:02:19]} d5 {[%emt 0:01:16]} 5. e5 {[%emt 0:00:17]} f6 {[%emt 0:01:37]} 6. c4 {[%emt 0:00:08] LiveBook: 7 Games} e6 {[%emt 0:02:57]} 7. exf6 {[%emt 0:06:06]} Nxf6 {[%emt 0:00:11]} 8. Bd3 $11 {[%emt 0:00:14]} O-O {[%emt 0:01:47]} 9. O-O {[%emt 0:00:44]} Nbd7 {[%emt 0:05:04]} 10. Ng5 {[%emt 0:07:06]} Re8 {[%emt 0:00:23]} 11. f4 {[%emt 0:02:07]} dxc4 {[%emt 0:02:24]} 12. Bxc4 {[%emt 0:00:14]} Nb6 {[%emt 0:00:11]} 13. Bb3 {[%emt 0:00:21]} Nbd5 {[%emt 0:00:29]} 14. Nc3 {[%emt 0:01:43]} Qb6 {[%emt 0:03:18]} 15. Bc2 {[%emt 0:06:40]} Nh5 {[%emt 0:03:07]} 16. Ne2 {[%emt 0:12:37]} e5 {[%emt 0:12:58]} 17. fxe5 {[%emt 0:03:56]} Rxe5 {[%emt 0:00:06]} 18. Kh2 {[%emt 0:05:42]} Re7 {[%emt 0:01:41]} 19. g4 {[%emt 0:10:32]} Qc7+ {[%emt 0:03:21]} 20. Kg2 {[%emt 0:01:48]} Nhf6 {[%emt 0:00:52]} 21. Bb3 {[%emt 0:00:42]} Be6 {[%emt 0:04:23]} 22. Nxe6 {[%emt 0:03:58]} Rxe6 {[%emt 0:00:12]} 23. Bf4 {[%emt 0:00:09]} Qd7 {[%emt 0:04:07]} 24. Rf3 {[%emt 0:04:07]} Kh8 {[%emt 0:06:49]} 25. Be5 {[%emt 0:00:49]} Re7 {[%emt 0:08:04]} 26. Ng3 {[%emt 0:05:30]} Ng8 {[%emt 0:05:14]} 27. Bxg7+ {[%emt 0:00:56]} Kxg7 {[%emt 0:00:14]} 28. Qd2 {[%emt 0:01:26]} Rae8 {[%emt 0:07:18]} 29. Qg5 {[%emt 0:02:37]} Kh8 {[%emt 0:00:20]} 30. Bxd5 {[%emt 0:00:32]} Qxd5 {[%emt 0:00:48]} 31. Qxd5 {[%emt 0:00:04]} cxd5 {[%emt 0:00:06]} 32. Rc1 {[%emt 0:00:09]} 1/2-1/2

[Event "SVK-ch Open 2018"]
[Site "Banska Stiavnica"]
[Date "2018.07.14"]
[Round "8"]
[White "Nogrady, Vilmos"]
[Black "Polyik, Peter"]
[Result "1/2-1/2"]
[ECO "B02"]
[WhiteElo "2154"]
[BlackElo "2265"]
[Annotator "NA"]
[PlyCount "48"]
[EventDate "2018.07.07"]
[EventType "swiss"]
[EventCountry "SVK"]
[SourceTitle "playchess.com"]
[Source "ChessBase"]
[SourceQuality "1"]
[TimeControl "40/5400+30:1800+30"]

1. e4 {[%emt 0:00:00]} Nf6 {[%emt 0:00:00]} 2. Nc3 {[%emt 0:08:14]} d5 {[%emt 0:00:10]} 3. e5 {[%emt 0:00:37]} Ne4 {[%emt 0:00:18]} 4. Nxe4 {[%emt 0:04:12]} dxe4 {[%emt 0:00:07]} 5. d4 {[%emt 0:00:45]} exd3 $14 {[%emt 0:01:27] LiveBook: 12 Partien} 6. Bxd3 {[%emt 0:04:32]} Nc6 {[%emt 0:01:41]} 7. Bf4 {[%emt 0:13:24]} Qd5 {[%emt 0:04:40]} 8. Qf3 {[%emt 0:06:26]} Qa5+ {[%emt 0:07:09]} 9. c3 {[%emt 0:12:40]} Nxe5 {[%emt 0:01:20]} 10. Bxe5 {[%emt 0:00:08]} Qxe5+ {[%emt 0:00:05]} 11. Ne2 {[%emt 0:00:12]} e6 {[%emt 0:11:23]} 12. O-O-O {[%emt 0:13:12]} Be7 {[%emt 0:04:54]} 13. h4 {[%emt 0:04:56]} O-O {[%emt 0:03:08]} 14. g4 {[%emt 0:04:19]} a5 {[%emt 0:07:33]} 15. g5 {[%emt 0:01:21]} a4 {[%emt 0:00:49]} 16. a3 {[%emt 0:12:04]} Ra5 {[%emt 0:09:33]} 17. Bc2 {[%emt 0:01:25]} Rd5 {[%emt 0:14:16]} 18. Rde1 {[%emt 0:00:47]} Qd6 {[%emt 0:03:42]} 19. Qe4 {[%emt 0:03:30]} g6 {[%emt 0:00:20]} 20. f4 {[%emt 0:03:27]} e5 {[%emt 0:03:25]} 21. Rd1 {[%emt 0:01:05]} c6 {[%emt 0:04:04]} 22. Rxd5 {[%emt 0:01:22]} Qxd5 {[%emt 0:00:31]} 23. Qxd5 {[%emt 0:00:10]} cxd5 {[%emt 0:00:05]} 24. fxe5 {[%emt 0:00:12]} Bd7 {[%emt 0:01:50]} 1/2-1/2

[Event "SVK-ch Open 2018"]
[Site "Banska Stiavnica"]
[Date "2018.07.14"]
[Round "8"]
[White "Cech, Dominik"]
[Black "Ruckschloss, Karol"]
[Result "0-1"]
[ECO "B08"]
[WhiteElo "2151"]
[BlackElo "2245"]
[Annotator "NA"]
[PlyCount "66"]
[EventDate "2018.07.07"]
[EventType "swiss"]
[EventCountry "SVK"]
[SourceTitle "playchess.com"]
[Source "ChessBase"]
[SourceQuality "1"]
[TimeControl "40/5400+30:1800+30"]

1. e4 {[%emt 0:00:35]} d6 {[%emt 0:00:00]} 2. d4 {[%emt 0:00:32]} Nf6 {[%emt 0:00:00]} 3. Nc3 {[%emt 0:00:17]} g6 {[%emt 0:01:21]} 4. Nf3 {[%emt 0:01:01]} Bg7 {[%emt 0:00:40]} 5. Be2 {[%emt 0:00:32]} c6 {[%emt 0:00:40]} 6. a4 {[%emt 0:00:47]} O-O {[%emt 0:00:26]} 7. O-O {[%emt 0:00:40]} Qc7 $14 {[%emt 0:02:13] LiveBook: 339 Games} 8. Re1 {[%emt 0:05:56]} e5 {[%emt 0:00:26]} 9. d5 {[%emt 0:00:38]} cxd5 {[%emt 0:02:57]} 10. exd5 {[%emt 0:08:08]} h6 {[%emt 0:04:54]} 11. Nd2 {[%emt 0:04:30]} Nbd7 {[%emt 0:11:15]} 12. Nb5 {[%emt 0:14:29]} Qb8 {[%emt 0:00:09]} 13. c4 {[%emt 0:00:10]} a6 {[%emt 0:03:06]} 14. Nc3 {[%emt 0:01:13]} a5 {[%emt 0:00:38]} 15. b3 {[%emt 0:09:08]} Nc5 {[%emt 0:00:55]} 16. Ba3 {[%emt 0:01:09]} b6 {[%emt 0:07:58]} 17. h3 {[%emt 0:07:50]} Ne8 {[%emt 0:03:10]} 18. Ra2 {[%emt 0:05:12]} f5 {[%emt 0:00:25]} 19. b4 {[%emt 0:00:43]} axb4 {[%emt 0:00:13]} 20. Bxb4 {[%emt 0:00:12]} Bd7 {[%emt 0:00:34]} 21. Qc2 {[%emt 0:04:49]} Qd8 {[%emt 0:04:06]} 22. Rea1 {[%emt 0:05:31]} e4 {[%emt 0:00:55]} 23. a5 {[%emt 0:08:40]} bxa5 {[%emt 0:00:19]} 24. Rxa5 {[%emt 0:00:09]} Rxa5 {[%emt 0:00:16]} 25. Rxa5 {[%emt 0:00:13]} Qg5 {[%emt 0:02:09]} 26. Rxc5 {[%emt 0:06:23]} dxc5 {[%emt 0:02:00]} 27. Bxc5 {[%emt 0:00:20]} Rf7 {[%emt 0:01:50]} 28. Nb5 {[%emt 0:04:15]} Kh7 {[%emt 0:04:30]} 29. Nf1 {[%emt 0:03:59]} h5 {[%emt 0:23:26]} 30. Kh1 {[%emt 0:01:55]} Bxb5 {[%emt 0:08:26]} 31. cxb5 {[%emt 0:00:27]} Nf6 {[%emt 0:00:42]} 32. d6 {[%emt 0:02:00]} f4 {[%emt 0:00:11]} 33. Bc4 {[%emt 0:00:28]} Qxc5 {[%emt 0:00:12]} 0-1